bitfinex/quotes_ETHUSD_20250404
["timestamp","ask_amount","ask_price","bid_price","bid_amount"]
[1743789905959,5.50818,1815.5,1815.1,11.01853]
[1743789906258,8.995,1815.6,1815.1,1.11907345]
[1743789906477,11.01727,1815.4,1815.1,1e-05]
[1743789906619,5.50878,1815.3,1815.1,1e-05]
[1743789906821,8.50792,1815.6,1815.2,5.50884]
[1743789907170,5.50728,1815.8,1815.4,11.01663]
[1743789907574,5.50728,1815.8,1815.5,0.7544]
[1743789907575,5.50724,1815.8,1815.5,0.7544]
[1743789907860,5.50756,1815.7,1815.5,0.7544]
[1743789908178,11.01463,1815.8,1815.5,0.7544]
[1743789908459,5.50764,1815.7,1815.5,0.7544]
[1743789908645,5.50782,1815.6,1815.3,0.756]
[1743789908847,5.50756,1815.7,1815.3,6.26467]
[1743789909031,5.50756,1815.7,1815.3,11.77327]
[1743789909220,5.50727,1815.8,1815.4,5.50838]
[1743789909425,11.01467,1815.8,1815.4,5.50838]
[1743789909622,5.50694,1815.9,1815.5,5.50794]
[1743789909822,5.50666,1816.0,1815.6,5.50766]
[1743789910025,11.01347,1816.0,1815.7,0.7898]
[1743789910435,5.50666,1816.0,1815.7,0.7898]
[1743789910623,5.50603,1816.2,1815.8,5.50709]
[1743789911066,11.01171,1816.3,1815.8,6.74257899]
[1743789911261,3.0,1816.4,1816.0,5.5065]
[1743789911262,11.01109,1816.4,1816.0,5.5065]
[1743789911463,5.50513,1816.5,1816.1,5.50603]
[1743789911664,5.995,1816.7,1816.2,5.50589]
[1743789911665,11.0092,1816.7,1816.2,5.50589]
[1743789911891,5.50389,1816.9,1816.5,5.50491]
[1743789912092,11.00734,1817.0,1816.6,6.29156]
[1743789912255,11.00734,1817.0,1816.1,0.7653]
[1743789912256,5.50418,1816.8,1816.1,0.7653]
[1743789912460,5.506,1816.2,1816.1,0.7653]
[1743789912703,5.50569,1816.3,1815.9,0.7653]
[1743789912994,5.50693,1815.9,1815.7,0.93734039]
[1743789913351,1.22553187,1816.7,1816.1,5.50624]
[1743789913565,5.50445,1816.8,1816.2,0.81096454]
[1743789913796,5.50448,1816.7,1816.3,5.50569]
[1743789913989,5.50448,1816.7,1816.3,11.01121]
[1743789914195,5.50511,1816.5,1816.2,0.7559]
[1743789914416,5.50554,1816.4,1816.2,0.7559]
[1743789914719,3.0,1816.6,1815.9,6.48100325]
[1743789914720,9.32093,1816.6,1815.9,6.48100325]
[1743789914867,5.50611,1816.2,1815.9,0.97422325]
[1743789915057,5.5055,1816.4,1816.0,5.50637]
[1743789915258,3.0,1816.4,1816.0,5.50637]
[1743789915457,8.50557,1816.4,1816.0,5.50637]
[1743789915697,5.50571,1816.3,1815.9,6.30909]
[1743789915997,5.50644,1816.1,1815.9,0.8022]
[1743789916182,3.0,1816.2,1815.6,0.97673348]
[1743789916384,3.0,1816.2,1815.6,0.17203348]
[1743789916385,5.50751,1815.7,1815.6,0.17203348]
[1743789916584,5.50751,1815.7,1815.1,1e-05]
[1743789916585,5.5083,1815.5,1815.1,0.79741]
[1743789916790,5.5088,1815.3,1815.1,0.79741]
[1743789917297,5.50903,1815.2,1815.1,1e-05]
[1743789918141,5.5088,1815.3,1815.1,1e-05]
[1743789918281,5.50903,1815.2,1815.1,1e-05]
[1743789918881,5.5088,1815.3,1815.1,1e-05]
[1743789919209,5.50844,1815.4,1815.1,1e-05]
[1743789920064,5.50892,1815.3,1815.1,1e-05]
[1743789920295,5.50903,1815.2,1815.1,1e-05]
[1743789920501,5.50843,1815.4,1815.1,1e-05]
[1743789920907,3.0,1815.4,1815.1,5.50925]
[1743789921696,3.0,1815.5,1815.1,5.50916]
[1743789921905,8.50817,1815.5,1815.1,6.060076]
[1743789922102,11.01724,1815.4,1815.1,0.72302726]
[1743789922298,5.50875,1815.3,1815.1,0.17211126]
[1743789922612,8.50903,1815.2,1815.1,1e-05]
[1743789922776,14.50703,1815.2,1815.1,1e-05]
[1743789923170,5.5085,1815.4,1815.1,1e-05]
[1743789923171,5.50846,1815.4,1815.1,1e-05]
[1743789923386,5.50813,1815.5,1815.1,1e-05]
[1743789923615,5.50847,1815.4,1815.1,1e-05]
[1743789923801,11.01645,1815.5,1815.1,5.50932]
[1743789924007,5.50813,1815.5,1815.1,5.50932]
[1743789924315,5.50903,1815.2,1815.1,1e-05]
[1743789924500,8.50903,1815.2,1815.1,1e-05]
[1743789925674,11.514,1815.3,1815.1,1e-05]
[1743789925912,5.50903,1815.2,1815.1,1e-05]
[1743789927387,8.50903,1815.2,1815.1,1e-05]
[1743789927575,9.31083,1815.2,1815.1,1e-05]
[1743789927773,6.33394,1814.8,1814.7,0.03799124]
[1743789928086,15.88494,1814.8,1814.7,1.24e-06]
[1743789929205,15.75840039,1814.8,1814.7,1.24e-06]
[1743789929788,9.75740039,1814.8,1814.7,1.24e-06]
[1743789930097,14.50724,1814.8,1814.7,1.24e-06]
[1743789931817,14.76620713,1814.8,1814.7,1.24e-06]
[1743789935599,15.31620713,1814.8,1814.7,1.24e-06]
[1743789935804,16.10330713,1814.8,1814.7,1.24e-06]
[1743789937922,0.55,1814.6,1814.1,0.1]
[1743789938101,8.51207,1814.2,1814.1,0.1]
[1743789938300,14.50907,1814.2,1814.1,0.1]
[1743789938683,14.72505971,1814.2,1814.1,0.1]
[1743789940721,16.07965971,1814.2,1814.1,1e-05]
[1743789942131,16.49434205,1814.2,1814.1,1e-05]
[1743789942628,10.49734205,1814.2,1814.1,1e-05]
[1743789942828,15.94534205,1814.2,1814.1,1e-05]
[1743789943031,12.14074205,1814.2,1814.1,1e-05]
[1743789943255,15.14074205,1814.2,1814.1,1e-05]
[1743789944630,9.14274205,1814.2,1814.1,1e-05]
[1743789944944,15.14174205,1814.2,1814.1,1e-05]
[1743789947020,15.90714205,1814.2,1814.1,1e-05]
[1743789947225,16.45714205,1814.2,1814.1,1e-05]
[1743789949260,16.49254205,1814.2,1814.1,1e-05]
[1743789949461,5.51389,1813.6,1813.5,0.01]
[1743789949666,14.51389,1813.6,1813.5,0.01]
[1743789949846,14.7058561,1813.6,1813.5,0.01]
[1743789952773,5.51511,1813.2,1813.1,0.1]
[1743789952940,11.70668036,1813.2,1813.1,0.1]
[1743789953135,5.70668036,1813.2,1813.1,0.1]
[1743789954178,6.12084304,1813.2,1813.1,0.1]
[1743789954785,5.70668036,1813.2,1813.1,0.1]
[1743789956064,9.48288036,1813.2,1813.1,0.1]
[1743789956878,8.70668036,1813.2,1813.1,0.1]
[1743789957293,9.12195949,1813.2,1813.1,0.1]
[1743789957943,15.12295949,1813.2,1813.1,0.1]
[1743789959890,15.67295949,1813.2,1813.1,0.1]
[1743789960245,16.48245949,1813.2,1813.1,1e-05]
[1743789961059,9.93145949,1813.2,1813.1,1e-05]
[1743789961267,15.93245949,1813.2,1813.1,1e-05]
[1743789961644,9.12195949,1813.2,1813.1,1e-05]
[1743789961895,15.12395949,1813.2,1813.1,1e-05]
[1743789962250,5.70668036,1813.2,1813.1,1e-05]
[1743789962655,0.19157036,1813.2,1813.1,1e-05]
[1743789963960,5.51482,1813.3,1813.1,1e-05]
[1743789964160,0.15480981,1813.2,1813.1,5.51542]
[1743789964352,11.51622,1813.5,1813.1,11.83583]
[1743789964553,5.66939981,1813.4,1813.1,2.00582691]
[1743789964897,5.51501,1813.3,1813.1,0.80501]
[1743789965092,5.515,1813.3,1813.1,0.80501]
[1743789965496,0.15480981,1813.2,1813.1,0.80501]
[1743789965664,0.15480981,1813.2,1813.1,6.32042]
[1743789965861,5.51464,1813.4,1813.1,0.80501]
[1743789966195,17.03064,1813.5,1813.1,7.67629312]
[1743789966400,5.51424,1813.5,1813.2,5.51508]
[1743789966564,0.15480981,1813.4,1813.3,6.3414]
[1743789967094,5.66930981,1813.4,1813.3,0.99893912]
[1743789967295,5.5145,1813.4,1813.3,0.99893912]
[1743789967596,5.51494,1813.3,1813.1,0.98164912]
[1743789967797,0.15480981,1813.4,1813.1,0.98164912]
[1743789967997,5.51474,1813.4,1813.1,0.98164912]
[1743789968173,0.15480981,1813.3,1813.1,0.80931]
[1743789968374,5.51423,1813.5,1813.1,7.01214116]
[1743789968573,5.66945981,1813.4,1813.1,1.4418]
[1743789968770,5.66945981,1813.4,1813.2,0.17233912]
[1743789969307,0.15480981,1813.4,1813.3,6.3263]
[1743789969807,5.51364,1813.7,1813.3,6.3263]
[1743789970014,5.51364,1813.7,1813.3,6.49863912]
[1743789970207,0.15699173,1813.6,1813.4,6.16425391]
[1743789970510,11.5135,1814.1,1813.7,5.51343]
[1743789970806,5.51177,1814.3,1813.9,6.30183]
[1743789971003,5.51177,1814.3,1814.0,5.51265]
[1743789971300,5.51237,1814.1,1814.0,0.17233912]
[1743789971701,5.51219,1814.2,1814.0,0.17233912]
[1743789972000,5.51219,1814.2,1813.9,0.7889]
[1743789972223,5.51239,1814.1,1813.9,0.7889]
[1743789972425,5.51219,1814.2,1813.9,0.7889]
[1743789972731,5.51161,1814.4,1814.0,5.51264]
[1743789972915,5.51183,1814.3,1814.1,0.7522]
[1743789973116,5.51118,1814.5,1814.1,6.26443]
[1743789973334,5.51118,1814.5,1814.2,5.51204]
[1743789973735,5.51087,1814.6,1814.2,5.56704606]
[1743789973917,11.02197,1814.6,1814.2,5.56704606]
[1743789974126,5.51087,1814.6,1814.2,11.07896606]
[1743789974425,11.51025,1814.8,1814.3,0.7778]
[1743789974638,5.51133,1814.5,1814.3,0.7778]
[1743789974811,0.16492179,1814.4,1814.3,0.7778]
[1743789975002,3.0,1814.7,1814.3,0.7778]
[1743789975206,5.51188,1814.3,1814.1,0.762]
[1743789975740,0.16492179,1814.2,1814.1,0.762]
[1743789975939,5.5125,1814.1,1813.8,0.7819]
[1743789976145,5.67701179,1814.2,1813.8,6.29517]
[1743789976446,0.16492179,1814.1,1814.0,0.8078]
[1743789976745,0.16492179,1814.1,1814.0,6.32047]
[1743789976946,5.51147,1814.4,1814.0,11.83314]
[1743789977150,0.16504065,1814.1,1814.0,11.83314]
[1743789977315,5.51215,1814.2,1814.0,0.8078]
[1743789977513,5.51215,1814.2,1813.5,4.7132368]
[1743789977514,5.51298,1813.9,1813.8,0.99678807]
[1743789977753,8.51298,1813.9,1813.8,0.17218807]
[1743789977955,9.44851683,1813.9,1813.4,0.8246]
[1743789978161,5.51419,1813.5,1813.4,0.8246]
[1743789978652,5.51419,1813.5,1813.2,0.8032]
[1743789978653,5.51455,1813.4,1813.2,0.8032]
[1743789978815,5.6777748,1813.5,1813.2,0.8032]
[1743789979014,0.1635348,1813.5,1813.2,6.31827]
[1743789979209,5.51466,1813.4,1813.2,0.8032]
[1743789979520,11.02937,1813.4,1813.2,0.8032]
[1743789979845,0.1635348,1813.3,1813.2,0.8032]
[1743789980045,5.51424,1813.5,1813.2,6.31831]
[1743789980211,0.1635348,1813.4,1813.2,6.31831]
[1743789980410,0.1635348,1813.4,1813.2,7.501671]
[1743789980612,0.1635348,1813.4,1813.3,5.5148]
[1743789980857,0.1635348,1813.4,1813.3,6.38514233]
[1743789981147,5.51271,1814.0,1813.7,0.7801]
[1743789981450,8.51239,1814.1,1813.8,5.51325]
[1743789981749,5.51179,1814.3,1814.0,5.51265]
[1743789981952,0.7928,1814.7,1814.1,0.7766]
[1743789982152,5.51005,1814.9,1814.1,0.7766]
[1743789982362,5.51156,1814.4,1814.1,0.7766]
[1743789982744,11.02323,1814.4,1814.1,0.7766]
[1743789982922,5.51177,1814.3,1814.1,0.7766]
[1743789983122,5.51207,1814.2,1814.1,0.7766]
[1743789983543,5.51177,1814.3,1814.1,0.7766]
[1743789983852,5.51118,1814.5,1814.1,6.28884]
[1743789984058,11.02254,1814.5,1814.1,7.468989]
[1743789984359,5.51118,1814.5,1814.1,7.468949]
[1743789984735,5.51118,1814.5,1814.2,5.51197]
[1743789984929,5.5109,1814.6,1814.2,5.51197]
[1743789984930,5.999,1814.7,1814.4,5.51117]
[1743789985227,5.51085,1814.6,1814.5,0.7623]
[1743789985432,11.02255,1814.5,1814.3,0.7719]
[1743789985632,5.51146,1814.4,1814.3,0.7719]
[1743789985828,5.51086,1814.6,1814.3,0.7719]
[1743789986453,3.0,1814.6,1814.3,6.28344]
[1743789986652,3.0,1814.6,1814.3,12.423374]
[1743789986962,5.998,1814.9,1814.3,12.423374]
[1743789986963,5.50999,1814.9,1814.5,5.51103]
[1743789987203,5.50968,1815.0,1814.6,6.27853]
[1743789987405,5.50968,1815.0,1814.6,6.27842]
[1743789987559,5.5091,1815.2,1814.6,0.7677]
[1743789987764,5.51055,1814.7,1814.6,0.7677]
[1743789988177,5.51028,1814.8,1814.4,0.8086]
[1743789988381,8.51005,1814.9,1814.5,5.51089]
[1743789988877,3.0,1814.9,1814.6,5.51081]
[1743789989074,5.50905,1815.2,1814.9,5.50994]
[1743789989277,5.50905,1815.2,1814.7,0.8176]
[1743789989494,0.13646593,1815.1,1814.8,5.51014]
[1743789989699,5.50877,1815.3,1814.8,6.693961]
[1743789989911,0.13646593,1815.0,1814.8,5.51014]
[1743789990096,5.50877,1815.3,1814.9,5.50982]
[1743789990408,5.50903,1815.2,1814.9,5.50982]
[1743789990578,5.50877,1815.3,1814.8,5.51021]
[1743789990778,5.50877,1815.3,1814.9,5.50973]
[1743789991414,7.17511113,1815.6,1815.1,5.50921]
[1743789991415,5.50813,1815.5,1815.1,5.50921]
[1743789991772,5.50813,1815.5,1815.2,5.509]
[1743789991971,5.50813,1815.5,1815.2,5.50898]
[1743789992202,11.01649,1815.5,1815.1,5.50921]
[1743789992409,5.50843,1815.4,1815.0,6.30903]
[1743789992576,5.50873,1815.3,1815.0,0.7994]
[1743789992976,5.50848,1815.4,1815.0,6.30893]
[1743789993205,3.0,1815.6,1815.0,6.939823]
[1743789993504,5.50846,1815.4,1815.0,6.939823]
[1743789993688,5.50887,1815.3,1815.0,0.7994]
[1743789993889,5.50855,1815.4,1815.0,0.7994]
[1743789994199,6.31834,1816.1,1815.5,0.8282]
[1743789994511,5.60696,1815.9,1815.6,0.05507672]
[1743789994668,5.60696,1815.9,1815.5,6.3362]
[1743789995404,11.11411,1815.9,1815.5,6.3362]
[1743789995562,5.60696,1815.9,1815.5,6.3362]
[1743789996204,5.60696,1815.9,1815.5,6.3912743]
[1743789996511,5.60696,1815.9,1815.7,5.5074]
[1743789996512,0.1,1815.9,1815.7,5.5074]
[1743789996676,0.1,1815.9,1815.8,6.3670807]
[1743789996882,0.1,1815.9,1815.8,6.36707263]
[1743789997202,0.1,1815.9,1815.8,12.88701]
[1743789997407,5.50519,1816.5,1816.1,11.01221]
[1743789997612,5.50519,1816.5,1816.2,5.50595]
[1743789997812,0.13942836,1816.4,1816.3,0.7698]
[1743789998199,5.50418,1816.8,1816.1,0.765]
[1743789998426,5.50647,1816.1,1815.9,0.765]
[1743789998719,0.1435888,1816.0,1815.5,5.50802]
[1743789998874,5.50751,1815.7,1815.4,0.8067]
[1743789999075,5.50748,1815.8,1815.4,6.31501]
[1743789999287,0.1435888,1815.7,1815.4,6.31501]
[1743789999469,5.6512288,1815.7,1815.4,0.8067]
[1743789999688,0.1435888,1815.7,1815.4,6.31497]
[1743789999890,0.1435888,1815.7,1815.4,7.55241674]
[1743790000136,0.0935888,1815.7,1815.4,7.55241674]
[1743790000301,0.13795662,1815.7,1815.4,1.98907]
[1743790000502,5.64546662,1815.7,1815.2,6.33148]
[1743790000827,0.13795662,1815.7,1815.4,5.50829]
[1743790001037,0.13795662,1815.7,1815.5,6.33071]
[1743790001206,5.64557662,1815.7,1815.5,0.8227]
[1743790001412,3.0,1815.9,1815.5,0.8227]
[1743790001413,5.50694,1815.9,1815.5,0.8227]
[1743790001740,5.50667,1816.0,1815.6,5.5077]
[1743790001897,0.12487672,1815.8,1815.6,6.691552]
[1743790002098,5.50667,1816.0,1815.6,6.691552]
[1743790002332,0.12487672,1815.7,1815.6,6.691552]
[1743790002500,5.50667,1816.0,1815.6,12.199212]
[1743790002702,5.50662,1816.0,1815.7,5.50734]
[1743790002901,8.994,1816.2,1815.5,11.83882]
[1743790003098,5.50702,1815.9,1815.5,6.33071]
[1743790003319,5.50702,1815.9,1815.5,11.83865]
[1743790003521,11.01276,1816.1,1815.6,5.56283979]
[1743790003724,11.01281,1816.1,1815.7,5.50736]
[1743790003928,5.50662,1816.0,1815.7,6.61437998]
[1743790004234,5.50632,1816.1,1815.8,5.50716]
[1743790004436,3.0,1816.2,1815.9,5.56195652]
[1743790004635,5.50556,1816.4,1816.0,6.26349]
[1743790004824,11.01117,1816.4,1816.1,0.626349]
[1743790005026,11.01113,1816.4,1816.1,0.626349]
[1743790005228,5.506,1816.2,1816.1,0.626349]
[1743790005543,11.01097,1816.4,1816.0,6.2635]
[1743790005936,5.50571,1816.3,1816.0,6.2635]
[1743790006702,5.50571,1816.3,1816.0,0.757]
[1743790006900,5.50614,1816.2,1816.0,0.757]
[1743790007303,5.50607,1816.2,1816.0,0.757]
[1743790007504,5.5063,1816.1,1816.0,0.757]
[1743790007832,5.63331921,1816.1,1816.0,0.757]
[1743790008017,11.13982921,1816.1,1815.8,0.7951]
[1743790008340,5.50684,1816.0,1815.8,0.7951]
[1743790008524,0.12697954,1816.0,1815.8,0.7951]
[1743790008835,5.50691,1815.9,1815.8,0.7951]
[1743790009139,5.50732,1815.8,1815.6,0.7951]
[1743790009434,0.766,1815.9,1815.3,0.7951]
[1743790009636,11.01592,1815.6,1815.3,0.7951]
[1743790009836,5.50866,1815.4,1815.1,0.7951]
[1743790010037,5.50816,1815.5,1815.1,0.7951]
[1743790010202,0.12622584,1815.3,1815.1,0.7951]
[1743790010404,5.50762,1815.7,1815.3,5.5086]
[1743790010603,11.49835,1815.8,1815.4,0.55086]
[1743790010812,17.00581,1815.8,1815.4,6.05925]
[1743790011039,11.49835,1815.8,1815.4,0.55086]
[1743790011212,5.50692,1815.9,1815.5,11.86607599]
[1743790011415,11.49755,1816.1,1815.7,5.50751]
[1743790011613,5.50655,1816.1,1815.7,5.50736]
[1743790011814,5.50602,1816.2,1815.9,0.7951]
[1743790012013,5.50611,1816.2,1815.9,0.7951]
[1743790012239,5.50611,1816.2,1815.9,0.85016355]
[1743790012438,5.50653,1816.1,1815.9,0.7951]
[1743790012945,5.50614,1816.2,1815.9,0.7951]
[1743790013141,5.50634,1816.1,1815.9,0.7951]
[1743790013802,5.50751,1815.7,1815.6,0.7678]
[1743790014001,5.50693,1815.9,1815.4,6.27592]
[1743790014307,5.50693,1815.9,1815.5,5.508]
[1743790014641,5.50725,1815.8,1815.4,6.27616]
[1743790015042,11.01467,1815.8,1815.4,6.27616]
[1743790015225,5.50725,1815.8,1815.4,7.454585]
[1743790015549,11.01414,1815.9,1815.5,5.50807]
[1743790015844,5.50693,1815.9,1815.5,5.56314444]
[1743790016042,5.50693,1815.9,1815.5,11.07115444]
[1743790016248,5.50633,1816.1,1815.6,5.50763]
[1743790016407,5.50633,1816.1,1815.7,6.866723]
[1743790016737,5.50673,1816.0,1815.7,1.359263]
[1743790017112,5.50601,1816.2,1815.7,1.359263]
[1743790017331,5.50642,1816.1,1815.7,6.866583]
[1743790017546,5.50671,1816.0,1815.8,0.6866583]
[1743790017752,5.50602,1816.2,1815.7,6.866673]
[1743790018044,5.991,1816.4,1815.9,5.5069]
[1743790018245,5.50552,1816.4,1816.1,0.8295]
[1743790019445,3.0,1816.5,1816.1,0.8295]
[1743790019742,11.13850121,1816.3,1816.1,0.8295]
[1743790019936,11.01172,1816.3,1816.1,0.8295]
[1743790020245,0.12678121,1816.2,1816.1,0.8295]
[1743790020746,5.50434,1816.8,1816.4,6.28956]
[1743790021049,5.50504,1816.6,1816.4,0.7844]
[1743790021211,5.50479,1816.6,1816.4,0.7844]
[1743790021422,5.50479,1816.6,1816.1,0.633593]
[1743790021423,5.50448,1816.7,1816.1,1.408093]
[1743790021627,5.50468,1816.7,1816.3,5.50554]
[1743790021851,5.50497,1816.6,1816.2,11.01176]
[1743790022050,5.50437,1816.8,1816.3,5.5055]
[1743790022256,5.50437,1816.8,1816.4,11.01044]
[1743790022457,5.50418,1816.8,1816.3,5.50568]
[1743790022659,5.50482,1816.6,1816.4,0.550568]
[1743790022858,5.50509,1816.5,1816.1,6.28079]
[1743790023063,5.50557,1816.4,1816.1,0.7745]
[1743790023264,5.50571,1816.3,1816.1,0.7745]
[1743790023853,5.506,1816.2,1816.1,0.7745]
[1743790024054,11.01162,1816.3,1815.9,6.32419309]
[1743790024369,11.01162,1816.3,1815.9,6.90154931]
[1743790024574,11.49483,1816.6,1815.9,6.90154931]
[1743790024575,5.50535,1816.5,1816.1,5.50616]
[1743790024785,5.50551,1816.4,1816.0,5.50642]
[1743790025090,8.50518,1816.5,1816.0,5.50643]
[1743790025385,11.495,1816.6,1816.2,5.5058]
[1743790025687,5.50458,1816.7,1816.4,0.786]
[1743790025890,5.50509,1816.5,1816.3,0.55058]
[1743790026187,6.089,1816.9,1816.4,5.50517]
[1743790026495,5.50429,1816.8,1816.5,6.859607]
[1743790026785,0.1,1816.9,1816.5,1.354517]
[1743790027086,5.50418,1816.8,1816.5,6.30908]
[1743790027477,5.50418,1816.8,1816.5,0.804]
[1743790027876,5.50458,1816.7,1816.5,0.804]
[1743790028281,5.50419,1816.8,1816.5,0.804]
[1743790028589,5.50491,1816.6,1816.2,6.31089676]
[1743790028790,5.50491,1816.6,1816.3,0.63108968]
[1743790029089,11.00988,1816.6,1816.3,0.63108968]
[1743790029791,11.00933,1816.7,1816.3,6.19183461]
[1743790029991,5.50479,1816.6,1816.3,6.19183461]
[1743790030167,5.50466,1816.7,1816.3,6.19172461]
[1743790030368,5.50466,1816.7,1816.4,0.61917246]
[1743790030992,5.50507,1816.6,1816.2,6.25589]
[1743790031186,5.50507,1816.6,1816.3,5.50553]
[1743790031490,5.50521,1816.5,1816.2,6.25589]
[1743790031688,5.50453,1816.7,1816.2,0.75]
[1743790031898,5.50518,1816.5,1816.2,6.25595]
[1743790032068,5.50488,1816.6,1816.2,12.93803]
[1743790032270,5.50453,1816.7,1816.3,11.01102]
[1743790032475,5.50453,1816.7,1816.4,5.50533]
[1743790032677,5.50453,1816.7,1816.4,5.50523]
[1743790032999,5.5048,1816.6,1816.2,7.43218]
[1743790033296,5.5065,1816.1,1815.9,0.63241931]
[1743790033481,5.5065,1816.1,1815.8,0.8212]
[1743790033482,5.50647,1816.1,1815.8,0.8212]
[1743790033689,11.01238,1816.2,1815.8,6.32823]
[1743790033881,11.01238,1816.2,1815.6,6.06]
[1743790033882,5.50661,1816.0,1815.6,0.8212]
[1743790034067,5.50661,1816.0,1815.7,5.5075]
[1743790034267,11.01342,1816.0,1815.8,0.55075]
[1743790034492,5.50721,1815.8,1815.6,0.8212]
[1743790034667,0.10840574,1815.7,1815.6,6.32902]
[1743790034870,5.50728,1815.8,1815.6,0.8212]
[1743790035069,12.28222,1816.2,1815.6,0.8212]
[1743790035070,0.10840574,1815.7,1815.6,6.32891]
[1743790035282,5.5068,1816.0,1815.7,5.50748]
[1743790035481,5.50721,1815.8,1815.6,0.8212]
[1743790035683,0.8027,1816.4,1816.0,5.50637]
[1743790036015,5.50418,1816.8,1816.2,0.8018]
[1743790036299,5.50579,1816.3,1815.7,0.7827]
[1743790036465,5.50544,1816.4,1816.0,5.5064]
[1743790036661,5.5049,1816.6,1816.2,6.28848]
[1743790036895,11.01071,1816.5,1816.2,0.7827]
[1743790037095,5.50533,1816.5,1816.2,0.7827]
[1743790037313,5.50543,1816.4,1816.2,0.7827]
[1743790037515,3.8183,1816.7,1816.0,0.7786]
[1743790037516,5.50569,1816.3,1816.0,0.7786]
[1743790037692,5.50488,1816.6,1816.0,0.628542]
[1743790037693,5.987,1816.6,1816.0,0.628542]
[1743790037897,5.50555,1816.4,1816.0,6.134982]
[1743790038103,11.00983,1816.6,1816.2,5.5058]
[1743790038303,5.50462,1816.7,1816.4,5.50509]
[1743790038498,5.50462,1816.7,1816.4,0.550509]
[1743790039119,0.1,1816.9,1816.4,0.550509]
[1743790039308,3.0,1816.8,1816.1,0.7786]
[1743790039511,5.5066,1816.0,1815.5,0.7588]
[1743790039823,5.50782,1815.6,1815.3,0.7588]
[1743790040024,5.50703,1815.9,1815.3,0.7588]
[1743790040325,5.50723,1815.8,1815.4,11.01639]
[1743790040621,5.50723,1815.8,1815.5,1.101639]
[1743790040825,11.01464,1815.8,1815.4,5.50815]
[1743790041014,5.50752,1815.7,1815.3,6.26742]
[1743790041326,5.50752,1815.7,1815.1,0.7768]
[1743790041327,5.50846,1815.4,1815.1,0.7768]
[1743790041500,5.50875,1815.3,1814.9,6.28823]
[1743790042107,11.0177,1815.3,1814.9,6.28823]
[1743790042305,5.50931,1815.2,1814.9,0.7783]
[1743790042506,5.50875,1815.3,1814.9,0.7783]
[1743790042722,5.50857,1815.4,1815.0,5.50959]
[1743790042925,5.50873,1815.3,1815.0,5.50959]
[1743790043224,5.50873,1815.3,1814.9,11.79801]
[1743790043419,5.50873,1815.3,1815.0,1.179801]
[1743790043725,5.50904,1815.2,1814.9,0.7783]
[1743790043894,5.50939,1815.1,1814.9,0.7783]
[1743790044096,5.50939,1815.1,1814.7,6.28577]
[1743790044306,5.50909,1815.2,1814.8,5.51009]
[1743790044500,5.50944,1815.1,1814.7,11.7962]
[1743790044705,5.50944,1815.1,1814.7,7.46539]
[1743790044904,5.50974,1815.0,1814.7,7.46539]
[1743790045105,5.50944,1815.1,1814.8,5.51022]
[1743790045508,5.51006,1814.9,1814.5,5.51104]
[1743790045714,5.51046,1814.8,1814.5,0.7525]
[1743790045941,5.50995,1814.9,1814.5,7.44111]
[1743790046121,5.50968,1815.0,1814.6,5.51071]
[1743790046423,5.51035,1814.8,1814.5,1.93002]
[1743790046842,5.51003,1814.9,1814.5,7.44116]
[1743790047045,5.51003,1814.9,1814.5,7.44112]
[1743790047252,5.51042,1814.8,1814.5,1.93002]
[1743790047432,5.51077,1814.7,1814.3,6.27729]
[1743790047648,5.51077,1814.7,1814.3,0.7656]
[1743790047823,5.51137,1814.5,1814.1,0.8785]
[1743790048162,5.51159,1814.4,1814.1,0.8785]
[1743790048315,5.51098,1814.6,1814.2,5.51207]
[1743790048640,5.51098,1814.6,1814.2,11.02399]
[1743790048820,5.51098,1814.6,1814.3,5.51176]
[1743790049021,5.5107,1814.7,1814.3,5.51172]
[1743790049332,5.51032,1814.8,1814.4,5.51144]
[1743790049505,9.8096,1815.0,1814.3,5.51172]
[1743790049506,5.51071,1814.7,1814.3,5.51172]
[1743790049706,5.51071,1814.7,1814.3,12.13116846]
[1743790049906,5.51071,1814.7,1814.3,6.61944846]
[1743790050142,5.51032,1814.8,1814.4,5.51142]
[1743790050312,11.02079,1814.8,1814.4,5.5113]
[1743790050513,5.51032,1814.8,1814.4,5.5113]
[1743790050707,11.02083,1814.8,1814.4,5.5113]
[1743790050911,5.51058,1814.7,1814.3,5.51175]
[1743790051241,5.51127,1814.5,1814.1,7.029756]
[1743790051755,5.51159,1814.4,1814.1,1.517616]
[1743790051910,5.51127,1814.5,1814.1,7.029976]
[1743790052104,5.51127,1814.5,1814.1,12.542136]
[1743790052338,5.51055,1814.7,1814.3,5.51173]
[1743790052537,5.5107,1814.7,1814.5,0.7722]
[1743790052736,5.5107,1814.7,1814.3,11.79572]
[1743790053042,5.5107,1814.7,1814.3,6.28396]
[1743790053237,5.51101,1814.6,1814.3,0.7722]
[1743790053542,5.51086,1814.6,1814.3,0.7722]
[1743790054064,5.5107,1814.7,1814.3,6.2838]
[1743790054211,5.51025,1814.8,1814.3,7.51848033]
[1743790054542,5.51025,1814.8,1814.4,5.51143]
[1743790055040,5.51025,1814.8,1814.4,11.02279]
[1743790055246,5.51004,1814.9,1814.5,11.02214]
[1743790055620,14.84027,1815.0,1814.6,5.51082]
[1743790055927,8.51006,1814.9,1814.6,1.102184]
[1743790056242,5.51041,1814.8,1814.4,5.51138]
[1743790056562,8.50998,1814.9,1814.5,5.51096]
[1743790056745,5.50967,1815.0,1814.6,5.51073]
[1743790056957,5.50967,1815.0,1814.6,11.02148]